[Event "Szansa Chess Open 2022"]
[Site "Warsaw"]
[Date "2022.09.18"]
[Round "8"]
[White "Pires, Emanuel Joao Robarts"]
[Black "Goraj, Barbara"]
[Result "1/2-1/2"]
[ECO "A15"]
[WhiteElo "1999"]
[BlackElo "2121"]
[Annotator "TA"]
[PlyCount "132"]
[EventDate "2022.09.17"]
[EventCountry "POL"]
[SourceTitle "playchess.com"]
[Source "ChessBase"]
[SourceQuality "1"]
[TimeControl "900+10"]

{[%evp 14,132,6,9,11,0,21,7,34,21,11,12,9,0,48,18,16,15,12,17,46,19,18,25,75,-24,67,76,100,29,45,33,60,-53,-38,-38,-37,-37,-35,-39,-38,-207,-212,-203,-207,-211,-220,-264,-250,-230,-202,-291,-283,-275,-114,-82,-70,-85,-26,-26,-26,-287,-109,-85,-109,-82,-34,-120,-28,-36,-36,-292,-213,-198,-158,-153,-71,-80,-81,-77,-8,-68,427,405,29974,29977,29976,29978,29978,8,8,8,8,8,8,8,8,8,8,8,8,8,8,8,8,8,8,8,8,8,8,8,8,8,8,8,8,8,8,8,8]} 1. c4 {[%emt 0:00:03]} Nf6 {[%emt 0:00:02]} 2. g3 {[%emt 0:00:01]} g6 {[%emt 0:00:05]} 3. b3 {[%emt 0:00:02]} Bg7 {[%emt 0:00:02]} 4. Bb2 {[%emt 0:00:01]} O-O {[%emt 0:00:07]} 5. Bg2 {[%emt 0:00:01]} d6 {[%emt 0:00:05]} 6. Nf3 {[%emt 0:00:03]} Nbd7 {[%emt 0:00:43]} 7. O-O {[%emt 0:00:04]} e5 {[%emt 0:00:18]} 8. d3 {[%emt 0:00:03]} Re8 {[%emt 0:00:44] A15: English Opening: 1...Nf6.} 9. Nbd2 {[%emt 0:00:05] [#]} c5 $146 {[%emt 0:00:49]} ({Predecessor:} 9... c6 10. Ne4 Nxe4 11. dxe4 Nc5 12. Qc2 f5 13. Nd2 f4 14. Rad1 Qe7 15. b4 Ne6 16. Nf3 c5 17. bxc5 Nxc5 18. Rd2 Bd7 19. Ba3 Bc6 20. Bxc5 dxc5 {½-½ (37) Caruana,F (2799)-Grischuk,A (2782) Saint Louis 2017}) 10. a3 {[%emt 0:00:32]} a5 {[%emt 0:00:57]} 11. Rb1 {[%emt 0:00:04]} (11. Ng5 {is more complex.} Nf8 12. a4 Rb8 13. Nge4) 11... Rb8 {[%emt 0:01:43]} 12. Ne1 {[%emt 0:00:43]} Nf8 {[%emt 0:00:17]} 13. Nc2 {[%emt 0:00:06]} Bg4 {[%emt 0:00:44]} (13... Ne6 $11 {should be considered.}) 14. h3 {[%emt 0:00:33]} Bd7 {[%emt 0:00:17]} 15. b4 {[%emt 0:00:11]} axb4 {[%emt 0:00:11]} 16. axb4 {[%emt 0:00:02]} b6 {[%emt 0:00:01]} 17. Ra1 {[%emt 0:00:09]} Qc8 {[%emt 0:00:22]} 18. Kh2 {[%emt 0:00:02]} Ne6 {[%emt 0:00:27]} (18... b5 $11) 19. Ra7 {[%emt 0:00:24]} (19. b5 $1 $16) 19... h5 {[%emt 0:00:45]} (19... b5 $1 $11) 20. b5 $14 {[%emt 0:01:00]} h4 {[%emt 0:01:38]} 21. Ne4 {[%emt 0:01:36] White is more active.} (21. Ne3 $16) 21... Nxe4 $11 {[%emt 0:00:29]} 22. dxe4 {[%emt 0:00:03]} Nd4 {[%emt 0:00:23]} 23. Bxd4 {[%emt 0:01:37]} ({White should play} 23. Na3 $14) 23... exd4 {[%emt 0:00:22]} 24. e3 {[%emt 0:00:02]} Be6 {[%emt 0:00:08]} 25. Qd3 {[%emt 0:00:26]} hxg3+ {[%emt 0:01:00]} 26. fxg3 {[%emt 0:00:10]} Be5 {[%emt 0:00:28]} 27. Ne1 $2 {[%emt 0:01:38]} (27. Rf2 $15) 27... Ra8 $19 {[%emt 0:01:44]} 28. Rxa8 {[%emt 0:00:34]} Qxa8 {[%emt 0:00:02]} 29. Nf3 {[%emt 0:00:05][%cal Re3d4]} Qa2 {[%emt 0:00:14]} 30. Rc1 {[%emt 0:00:31][%cal Bf1c1,Bc1c2,Bc2d2,Bd2d6][%mdl 32]} Ra8 {[%emt 0:01:46] Hoping for ...Ra3.} 31. exd4 {[%emt 0:04:39]} Ra3 {[%emt 0:00:02]} 32. Qc2 {[%emt 0:03:11]} (32. Rc2 $142 Rxd3 33. Rxa2 cxd4 34. Nxe5 dxe5 35. Bf1) 32... Qxc2 {[%emt 0:00:57]} ({Don't go for} 32... cxd4 $2 33. Qxa2 Rxa2 34. Nxe5 dxe5 35. Kg1 $19) 33. Rxc2 {[%emt 0:00:02]} Bxd4 {[%emt 0:00:02]} (33... cxd4 $19 {and Black stays clearly on top. aiming for ...Rc3.} 34. Nxe5 dxe5) 34. Rd2 $17 {[%emt 0:01:13]} Bc3 {[%emt 0:02:33] This bishop pair is nice.} ({Much weaker is} 34... Bxc4 $6 35. Nxd4 cxd4 36. Rxd4 Bxb5 37. Rxd6 $11) 35. Rxd6 {[%emt 0:00:05]} Ba5 {[%emt 0:00:01]} ({Black should try} 35... Bxc4 $17 {...Ba5 is the strong threat.} 36. Rxb6 Rb3) 36. Ne5 $11 {[%emt 0:00:37]} Kg7 {[%emt 0:00:27]} 37. Nc6 $2 {[%emt 0:00:26][%mdl 8192]} (37. Bf1 $1 $11) 37... Bxc4 $2 {[%emt 0:00:11]} (37... Be1 $19 {is more deadly.} 38. Rd1 Bxg3+ 39. Kh1 Bxc4) 38. Nxa5 $17 {[%emt 0:00:12]} Rxa5 {[%emt 0:00:01]} 39. Rxb6 {[%emt 0:00:02]} Rxb5 $19 {[%emt 0:00:02][%mdl 4096] Endgame KRB-KRB} (39... Bxb5 $17 40. Rb7 Kf6) 40. Rc6 {[%emt 0:00:01]} (40. Rxb5 $15 Bxb5 41. Kg1) 40... Be6 {[%emt 0:00:21]} (40... Bd3 $1 $17 41. Rc7 Kf6) 41. g4 {[%emt 0:00:09]} Kf6 {[%emt 0:00:08]} 42. Rc7 $2 {[%emt 0:00:08][%mdl 8192]} (42. Bf1 $15 Ra5 43. h4) 42... Ke5 {[%emt 0:00:04]} 43. h4 {[%emt 0:00:19]} Bxg4 {[%emt 0:00:25]} 44. Rxf7 {[%emt 0:00:07]} Rb8 {[%emt 0:00:08]} ({Better is} 44... c4 $1 {[%cal Rc4c3] And now ...c3 would win.} 45. Kg3 Be6) 45. Kg3 {[%emt 0:00:06] [#]} Be6 {[%emt 0:00:06]} 46. Rc7 {[%emt 0:00:07]} Rc8 {[%emt 0:00:13]} (46... c4 $17) 47. Re7 {[%emt 0:00:20]} (47. Rxc8 $1 $11 Bxc8 48. Bf3) 47... Kf6 $2 {[%emt 0:00:05][%mdl 8192]} (47... Rc6 $15 {stays ahead.} 48. Bf3 c4) 48. Rxe6+ $1 $18 {[%emt 0:00:02]} Kxe6 {[%emt 0:00:05] KR-KB} (48... Kf7 $18 49. Ra6 c4) 49. Bh3+ {[%emt 0:00:02][%mdl 64] Skewer} Ke5 {[%emt 0:00:03]} 50. Bxc8 {[%emt 0:00:02] KB-KPP} c4 {[%emt 0:00:16] [#]} 51. Ba6 $2 {[%emt 0:00:13]} (51. Bd7 $1 {mates} Kxe4 52. Kg4 Kd5 53. Kg5 Kd6 54. Ba4 Ke7 55. Kxg6 Kf8 56. Kh7) 51... Kxe4 $11 {[%emt 0:00:05] ( -> ...c3). The position is equal.} 52. Bxc4 {[%emt 0:00:41] White wants to mate with Kg4. KB-KP} Kf5 {[%emt 0:00:04]} 53. Bd3+ {[%emt 0:00:13]} Kf6 {[%emt 0:00:01]} 54. Kf4 {[%emt 0:00:05]} Kg7 {[%emt 0:00:07]} 55. Kg5 {[%emt 0:00:12]} Kg8 {[%emt 0:00:05]} 56. Kf6 {[%emt 0:00:10]} Kh8 {[%emt 0:00:04]} 57. Kf7 {[%emt 0:00:02]} g5 {[%emt 0:00:08]} 58. h5 {[%emt 0:00:14]} g4 {[%emt 0:00:01]} 59. Kg6 {[%emt 0:00:16]} g3 {[%emt 0:00:02]} 60. Be4 {[%emt 0:00:00]} g2 {[%emt 0:00:02]} 61. Bxg2 {[%emt 0:00:07]} Kg8 {[%emt 0:00:01]} 62. Be4 {[%emt 0:00:23]} Kh8 {[%emt 0:00:01]} 63. Bd3 {[%emt 0:00:11]} Kg8 {[%emt 0:00:02]} 64. Kh6 {[%emt 0:00:06]} Kh8 {[%emt 0:00:01]} 65. Bg6 {[%emt 0:00:02]} Kg8 {[%emt 0:00:01]} 66. Bf7+ {[%emt 0:00:01]} Kh8 {[%emt 0:00:04] Weighted Error Value: White=0.54/Black=0.44} 1/2-1/2

[Event "Szansa Chess Open 2022"]
[Site "Warsaw"]
[Date "2022.09.18"]
[Round "8"]
[White "Moscicka, Pola"]
[Black "Vasynda, Oleksandr"]
[Result "1/2-1/2"]
[ECO "E06"]
[WhiteElo "1958"]
[BlackElo "1866"]
[Annotator "TA"]
[PlyCount "58"]
[EventDate "2022.09.17"]
[EventCountry "POL"]
[SourceTitle "playchess.com"]
[Source "ChessBase"]
[SourceQuality "1"]
[TimeControl "900+10"]

{[%evp 22,58,2,0,26,37,27,14,29,-28,-20,0,8,0,14,25,56,41,47,52,48,57,56,20,41,41,31,30,29,37,36,9,10,10,24,7,9,0,27]} 1. d4 {[%emt 0:00:03]} Nf6 {[%emt 0:00:10]} 2. c4 {[%emt 0:00:01]} e6 {[%emt 0:00:02]} 3. g3 {[%emt 0:00:02]} d5 {[%emt 0:00:01]} 4. Bg2 {[%emt 0:00:01]} Be7 {[%emt 0:00:02]} 5. Nf3 {[%emt 0:00:03]} O-O {[%emt 0:00:01]} 6. Qc2 {[%emt 0:00:01]} c6 {[%emt 0:00:05]} 7. O-O {[%emt 0:00:09]} b6 {[%emt 0:00:01]} 8. Nbd2 {[%emt 0:00:12]} Bb7 {[%emt 0:00:01]} 9. b3 {[%emt 0:00:05]} Nbd7 {[%emt 0:00:32]} 10. Bb2 {[%emt 0:00:02]} c5 {[%emt 0:00:54]} 11. Rac1 {[%emt 0:03:04]} Rc8 {[%emt 0:00:31]} 12. Qb1 {[%emt 0:00:15]} cxd4 {[%emt 0:02:54] E09: Closed Catalan: Main Line: 7 Qc2 c6 8 Nbd2.} 13. Nxd4 {[%emt 0:00:12]} Bc5 {[%emt 0:01:13]} 14. Rfd1 {[%emt 0:01:28]} Qe7 {[%emt 0:00:05] [#]} (14... e5 {is interesting.} 15. Nf5 g6 16. Nh4 e4) 15. e4 $146 {[%emt 0:01:23]} (15. e3 $142) ({Predecessor:} 15. Nb5 a6 16. Nc3 Bc6 17. cxd5 exd5 18. e3 Qe6 19. Re1 Ne5 20. Nf3 Nxf3+ 21. Bxf3 {0-1 (43) Jung,Y (1923)-Ben Nasser,K (2263) Khanty-Mansiysk 2010}) 15... dxe4 {[%emt 0:01:16]} (15... dxc4 {with more complications.} 16. Nxc4 Ng4 17. Rc2 Rfd8) 16. Nxe4 {[%emt 0:00:10]} Bxe4 {[%emt 0:01:48]} 17. Bxe4 {[%emt 0:00:02]} Nxe4 {[%emt 0:00:06]} 18. Qxe4 {[%emt 0:00:02] Hoping for Nc6.} Bxd4 {[%emt 0:02:47]} 19. Bxd4 {[%emt 0:01:28]} Nc5 {[%emt 0:00:56] Against Qb7} 20. Qg4 {[%emt 0:00:21][%csl Gd4][%cal Rg4g7] [#]} e5 {[%emt 0:00:10]} 21. Bxc5 {[%emt 0:01:38]} Qxc5 {[%emt 0:00:23]} 22. Qg5 {[%emt 0:00:55]} f6 {[%emt 0:00:31]} 23. Qf5 {[%emt 0:01:29]} Rfd8 {[%emt 0:00:45]} 24. Rd7 {[%emt 0:00:13]} Rxd7 {[%emt 0:01:14]} 25. Qxd7 {[%emt 0:00:02]} Rc7 $1 {[%emt 0:00:38]} 26. Qd8+ {[%emt 0:00:11]} Kf7 {[%emt 0:00:05]} 27. Rd1 {[%emt 0:00:02]} Qe7 {[%emt 0:00:37]} 28. Qd5+ {[%emt 0:00:02]} Qe6 {[%emt 0:00:10]} 29. Qd8 {[%emt 0:00:03]} Qe7 {[%emt 0:00:01] Weighted Error Value: White=0.14 (very precise) /Black=0.09 (flawless)} 1/2-1/2

[Event "Szansa Chess Open 2022"]
[Site "Warsaw"]
[Date "2022.09.18"]
[Round "8"]
[White "Sidorczuk, Pawel"]
[Black "Jarzebowski, Kacper"]
[Result "0-1"]
[ECO "B11"]
[WhiteElo "1886"]
[BlackElo "2106"]
[Annotator "TA"]
[PlyCount "82"]
[EventDate "2022.09.17"]
[EventCountry "POL"]
[SourceTitle "playchess.com"]
[Source "ChessBase"]
[SourceQuality "1"]
[TimeControl "900+10"]

{[%evp 11,82,0,37,36,42,34,40,35,41,35,37,34,38,31,38,25,48,15,47,32,62,57,108,96,192,131,168,63,67,52,44,0,48,36,84,91,128,20,20,24,33,26,174,177,182,7,0,0,45,49,49,62,81,45,380,370,716,-1032,-1026,-1394,-1394,-29987,-29988,-29988,-29983,-29991,-29992,-29992,-29991,-29991,0,-29992,-29993]} 1. e4 {[%emt 0:00:01]} c6 {[%emt 0:00:00]} 2. Nf3 {[%emt 0:00:08]} d5 {[%emt 0:00:01]} 3. Nc3 {[%emt 0:00:01]} Bg4 {[%emt 0:00:00]} 4. h3 {[%emt 0:00:00]} Bxf3 {[%emt 0:00:01]} 5. Qxf3 {[%emt 0:00:02]} e6 {[%emt 0:00:01]} 6. d4 {[%emt 0:00:01]} Nd7 {[%emt 0:00:05]} 7. Bd3 {[%emt 0:00:13] B11: Caro-Kann: Two Knights Variation.} dxe4 {[%emt 0:00:16]} 8. Nxe4 {[%emt 0:00:02]} Ngf6 {[%emt 0:00:01]} 9. c3 {[%emt 0:00:11] White is slightly better.} Be7 {[%emt 0:00:06] is the legacy move (9...Nxe4).} 10. O-O {[%emt 0:00:02]} Nxe4 {[%emt 0:00:04]} 11. Qxe4 {[%emt 0:00:02]} Nf6 {[%emt 0:00:02]} 12. Qe2 {[%emt 0:00:01]} O-O {[%emt 0:00:03]} 13. Bf4 {[%emt 0:00:51] [#]} a5 $146 {[%emt 0:00:57]} ({Predecessor:} 13... Qb6 14. Rad1 Rfd8 15. Bb1 c5 16. Be5 Nd7 17. Bg3 Nf6 18. Be5 Nd7 19. Bg3 Nf6 20. Be5 Nd7 {½-½ (21) Paehtz,T (2365)-Sengupta,D (2569) Caleta 2015}) 14. a4 {[%emt 0:00:20]} (14. Rad1 {feels hotter.} Nd5 15. Be5 Bd6 16. c4) 14... h6 {[%emt 0:00:38]} 15. Rad1 {[%emt 0:00:33]} Qb6 {[%emt 0:00:06]} 16. Be5 {[%emt 0:00:13]} Rfd8 {[%emt 0:00:18]} (16... Nd7 $14) 17. Kh1 {[%emt 0:00:16]} Qb3 {[%emt 0:00:47]} (17... g6 $16) 18. Bc2 {[%emt 0:00:33] This bishop pair is nice.} (18. f4 $18) 18... Qb6 {[%emt 0:00:23]} 19. Qd3 {[%emt 0:03:40]} (19. f4 $1 $18) 19... c5 {[%emt 0:00:06]} (19... Qxb2 $2 20. Bxf6 Bxf6 21. Rb1 Qxb1 22. Rxb1 $18) 20. Bxf6 {[%emt 0:00:34]} Bxf6 {[%emt 0:00:01]} 21. Qh7+ {[%emt 0:00:01]} Kf8 {[%emt 0:00:00][%cal Rc5d4]} 22. d5 $1 {[%emt 0:00:01]} Ke7 {[%emt 0:01:03]} (22... exd5 $14 23. Rd3 Ke7) 23. Rfe1 $16 {[%emt 0:00:14]} Rd6 {[%emt 0:01:34]} (23... Qxb2 $2 24. Rb1 Qxb1 25. Rxb1 $18) 24. c4 {[%emt 0:01:29]} (24. dxe6 $1 $16 fxe6 25. Rxd6 Kxd6 26. Qg6) 24... Rad8 $11 {[%emt 0:00:49]} 25. b3 {[%emt 0:01:10]} Qb4 {[%emt 0:00:25]} 26. Re2 {[%emt 0:03:54]} b5 {[%emt 0:01:54]} (26... Qb6 $11) 27. axb5 $18 {[%emt 0:01:01]} a4 {[%emt 0:00:00] [#]} 28. Qd3 {[%emt 0:00:05]} (28. bxa4 $6 Qxc4 29. Qe4 Qa2 $16) ({Better is} 28. Rd3 $1 $18) 28... a3 $11 {[%emt 0:00:27] Threatens to win with ...a2.} 29. Bb1 {[%emt 0:00:04]} Kf8 {[%emt 0:01:22] Active counter play!} 30. Qh7 {[%emt 0:01:36]} Qxb3 {[%emt 0:00:22]} 31. Rde1 {[%emt 0:00:01]} Ke7 {[%emt 0:03:51]} (31... Qxc4 $2 32. Ba2 Qc3 33. dxe6 fxe6 34. Bxe6 Rxe6 35. Rxe6 $18) 32. Qf5 {[%emt 0:01:51][%cal Rd5e6]} Qxc4 $2 {[%emt 0:02:11][%mdl 8192] [#]} (32... Kf8 $1 $14 33. dxe6 fxe6 34. Qxc5 (34. Rxe6 Qxc4 35. Rxd6 Rxd6 $11) 34... Be7) 33. Ba2 $1 $18 {[%emt 0:00:09]} Qxb5 {[%emt 0:00:33]} (33... Kf8 34. dxe6 (34. Bxc4 exf5 35. g3 Ra8 $17) (34. Qxf6 gxf6 35. Bxc4 exd5 $16) 34... fxe6 35. Qxf6+ (35. Bxc4 exf5 36. Re3 Ra8 $19) 35... gxf6 36. Bxc4 e5) 34. Rxe6+ $4 {[%emt 0:01:12][%mdl 8192]} fxe6 $19 {[%emt 0:00:37]} 35. Rxe6+ {[%emt 0:00:01]} Kf8 {[%emt 0:01:15] Strongly threatening ...Qb2.} ({Less strong is} 35... Rxe6 36. Qxe6+ Kf8 37. d6 $14) 36. Qh7 {[%emt 0:00:21]} Qf1+ {[%emt 0:00:19]} 37. Kh2 {[%emt 0:00:01]} Qxf2 {[%emt 0:00:03]} 38. Bb1 {[%emt 0:00:18]} Qf4+ {[%emt 0:00:05]} 39. Kh1 {[%emt 0:00:01]} Qc1+ {[%emt 0:00:02]} 40. Kh2 {[%emt 0:00:00]} Qf4+ {[%emt 0:00:01]} 41. Kh1 $1 {[%emt 0:00:01]} Rxe6 {[%emt 0:00:20] Weighted Error Value: White=0.67/Black=0.57} 0-1

[Event "Szansa Chess Open 2022"]
[Site "Warsaw"]
[Date "2022.09.18"]
[Round "8"]
[White "Rak, Maciej"]
[Black "Jakubowski, Krzysztof"]
[Result "0-1"]
[ECO "B21"]
[WhiteElo "1866"]
[BlackElo "2466"]
[Annotator "ChessBase"]
[PlyCount "98"]
[EventDate "2022.09.17"]
[EventCountry "POL"]
[SourceTitle "playchess.com"]
[Source "ChessBase"]
[SourceQuality "1"]
[TimeControl "900+10"]

1. e4 {[%emt 0:00:02]} c5 {[%emt 0:00:02]} 2. d4 {[%emt 0:00:01]} cxd4 {[%emt 0:00:02]} 3. c3 {[%emt 0:00:02]} dxc3 {[%emt 0:00:02]} 4. Nxc3 {[%emt 0:00:03]} Nc6 {[%emt 0:00:02]} 5. Nf3 {[%emt 0:00:03]} e6 {[%emt 0:00:02]} 6. Bc4 {[%emt 0:00:02]} a6 {[%emt 0:00:02]} 7. Qe2 {[%emt 0:00:07]} b5 {[%emt 0:00:02]} 8. Bb3 {[%emt 0:00:01]} Bb7 {[%emt 0:00:03]} 9. O-O {[%emt 0:00:03]} Na5 {[%emt 0:00:02]} 10. Bc2 {[%emt 0:01:10]} Ne7 {[%emt 0:00:49]} 11. Rd1 {[%emt 0:00:57]} Ng6 {[%emt 0:00:55]} 12. a3 {[%emt 0:03:25]} Be7 {[%emt 0:00:42]} 13. h4 {[%emt 0:02:03]} Bxh4 {[%emt 0:02:35]} 14. Nxh4 {[%emt 0:00:39]} Qxh4 {[%emt 0:00:14]} 15. Be3 {[%emt 0:00:39]} Nc4 {[%emt 0:01:22]} 16. Bc5 {[%emt 0:00:59]} Nf4 {[%emt 0:00:32]} 17. Qf3 {[%emt 0:00:55]} Ne5 {[%emt 0:00:38]} 18. Qe3 {[%emt 0:02:15]} Qg4 {[%emt 0:01:01]} 19. Qg3 {[%emt 0:01:36]} Qxg3 {[%emt 0:00:09]} 20. fxg3 {[%emt 0:00:01]} Nfg6 {[%emt 0:00:03]} 21. a4 {[%emt 0:00:58]} bxa4 {[%emt 0:00:04]} 22. Nxa4 {[%emt 0:00:23]} Rc8 {[%emt 0:00:48]} 23. b4 {[%emt 0:00:04]} h5 {[%emt 0:01:01]} 24. Nb6 {[%emt 0:00:58]} Rd8 {[%emt 0:00:04]} 25. Bd6 {[%emt 0:00:31]} h4 {[%emt 0:00:02]} 26. gxh4 {[%emt 0:00:39]} Rxh4 {[%emt 0:00:05]} 27. Ba4 {[%emt 0:00:46]} Rxe4 {[%emt 0:04:32]} 28. Bc7 {[%emt 0:00:16]} Re2 {[%emt 0:00:06]} 29. Bxd8 {[%emt 0:00:09]} Kxd8 {[%emt 0:00:01]} 30. Nxd7 {[%emt 0:00:03]} Ke7 {[%emt 0:00:01]} 31. Nxe5 {[%emt 0:00:17]} Nxe5 {[%emt 0:00:02]} 32. Rac1 {[%emt 0:00:12]} Bxg2 {[%emt 0:00:17]} 33. Rc7+ {[%emt 0:00:09]} Kf6 {[%emt 0:00:02]} 34. Kh2 {[%emt 0:00:10]} Bc6+ {[%emt 0:00:09]} 35. Kg3 {[%emt 0:00:05]} Bxa4 {[%emt 0:00:05]} 36. Ra1 {[%emt 0:00:13]} Bb5 {[%emt 0:00:02]} 37. Rd1 {[%emt 0:00:08]} g5 {[%emt 0:00:06]} 38. Rd8 {[%emt 0:00:09]} Re3+ {[%emt 0:00:15]} 39. Kf2 {[%emt 0:00:11]} Rf3+ {[%emt 0:00:02]} 40. Kg2 {[%emt 0:00:02]} Bf1+ {[%emt 0:00:02]} 41. Kg1 {[%emt 0:00:10]} Bh3 {[%emt 0:00:05]} 42. Rc1 {[%emt 0:00:17]} g4 {[%emt 0:00:07]} 43. Rd6 {[%emt 0:00:14]} Ra3 {[%emt 0:00:20]} 44. Kh2 {[%emt 0:00:10]} Nf3+ {[%emt 0:00:10]} 45. Kg3 {[%emt 0:00:02]} Nd4+ {[%emt 0:00:06]} 46. Kh2 {[%emt 0:00:12]} Ra2+ {[%emt 0:00:04]} 47. Kh1 {[%emt 0:00:05]} Bg2+ {[%emt 0:00:03]} 48. Kh2 {[%emt 0:00:03]} Bf3+ {[%emt 0:00:06]} 49. Kg3 {[%emt 0:00:22]} Nf5+ {[%emt 0:00:02]} 0-1

[Event "Szansa Chess Open 2022"]
[Site "Warsaw"]
[Date "2022.09.18"]
[Round "8"]
[White "Ivanytska, Liudmyla"]
[Black "Bartkiewicz, Pawel"]
[Result "0-1"]
[ECO "B13"]
[WhiteElo "1845"]
[BlackElo "1938"]
[Annotator "TA"]
[PlyCount "118"]
[EventDate "2022.09.17"]
[EventCountry "POL"]
[SourceTitle "playchess.com"]
[Source "ChessBase"]
[SourceQuality "1"]
[TimeControl "900+10"]

{[%evp 14,118,31,3,12,5,5,0,15,0,0,-7,8,11,16,-7,14,0,11,12,18,14,178,174,177,8,9,0,0,0,0,0,0,0,0,0,0,-18,-2,-20,-5,-5,-5,-72,-5,-60,-37,-68,-68,-69,-69,-71,-78,-187,-191,-287,-306,-288,-297,-291,-237,-248,-252,-241,-218,-207,-161,-237,-164,-164,-164,-164,-164,-158,-157,-164,-146,-77,-83,-350,-251,-481,-402,-476,-463,-735,-607,-1055,-1087,-2039,-2039,-2165,-1954,-29969,-29970,-29970,-29971,-29974,-29975,-29975,-29975,-29975,-29975,-29976,-29976,-5604,-1658]} 1. e4 {[%emt 0:00:02]} c6 {[%emt 0:00:01]} 2. d4 {[%emt 0:00:03]} d5 {[%emt 0:00:01]} 3. exd5 {[%emt 0:00:00]} cxd5 {[%emt 0:00:01]} 4. Nf3 {[%emt 0:00:02]} Nc6 {[%emt 0:00:01]} 5. Bd3 {[%emt 0:00:01]} Nf6 {[%emt 0:00:04]} 6. O-O {[%emt 0:00:02]} g6 {[%emt 0:00:02]} 7. c3 {[%emt 0:00:07]} Bf5 {[%emt 0:00:03] is the new trend.} 8. h3 {[%emt 0:00:07]} Qc7 {[%emt 0:00:49] B13: Caro-Kann: Exchange Variation and Panov-Botvinnik Attack.} 9. Re1 {[%emt 0:00:23]} (9. Ne5 {with more complications.} Nxe5 10. Bxf5 gxf5 11. Bf4) 9... Bxd3 {[%emt 0:00:30]} 10. Qxd3 {[%emt 0:00:02]} Bg7 {[%emt 0:00:02] The position is equal.} 11. Ne5 {[%emt 0:00:09]} O-O {[%emt 0:00:14]} 12. Bf4 {[%emt 0:00:43][%cal Oe5g6]} Qb6 {[%emt 0:01:54]} (12... Nh5 $5 {[%cal Rh5f4]} 13. Bh2 Qb6 $11) 13. Nd2 {[%emt 0:00:37]} e6 {[%emt 0:00:24] [#]} 14. Ndf3 $146 {[%emt 0:00:20]} ({Predecessor:} 14. a4 Rac8 15. b4 a5 16. b5 Nxe5 17. Bxe5 Ne8 18. Bf4 Nd6 19. Ra2 Rfe8 20. Kh1 {1-0 (49) Gomez Sanchez,J (2331)-Gonzalez Soler,L (2178) Santa Clara 2022}) 14... Rfe8 {[%emt 0:00:42]} 15. Rab1 {[%emt 0:00:10]} Rac8 {[%emt 0:00:11]} 16. Qe3 {[%emt 0:00:10]} Na5 {[%emt 0:00:52]} 17. Bh6 {[%emt 0:00:11]} Qd6 $2 {[%emt 0:02:01]} (17... Qc7 $11 {and Black stays safe.}) 18. Bxg7 $18 {[%emt 0:00:56]} Kxg7 {[%emt 0:00:02] [#]} 19. Qf4 $2 {[%emt 0:00:03]} (19. Qh6+ $1 $18 {[%mdl 512]} Kg8 20. Ng5) 19... Qc7 $11 {[%emt 0:01:38]} 20. Nh2 {[%emt 0:00:39]} Nc4 {[%emt 0:02:05]} 21. Qc1 {[%emt 0:00:11]} h5 {[%emt 0:01:37]} 22. Nhf3 {[%emt 0:01:09]} Ne4 {[%emt 0:00:39]} 23. Nxc4 {[%emt 0:01:04]} Qxc4 {[%emt 0:00:02]} 24. Ne5 {[%emt 0:00:04]} Qc7 {[%emt 0:00:23]} 25. f3 {[%emt 0:00:02]} Nd6 {[%emt 0:00:17]} 26. a3 {[%emt 0:00:28]} (26. a4 {seems wilder.} a5 27. Qg5 Qd8 28. Qf4) 26... b5 {[%emt 0:00:22]} (26... a5 {is more complex.} 27. Qg5 Qd8 28. Qf4 Nf5) 27. Nd3 {[%emt 0:00:23]} a5 {[%emt 0:00:19]} 28. Nc5 {[%emt 0:00:02]} (28. Qg5 $11) 28... Nb7 {[%emt 0:00:16]} ({Better is} 28... e5 $1 $17) 29. b4 {[%emt 0:00:03]} ({White should try} 29. Nd3 $1 $11) 29... Nd6 {[%emt 0:00:45]} 30. Qf4 {[%emt 0:00:38]} a4 {[%emt 0:00:27]} 31. Ra1 {[%emt 0:00:35]} Nc4 {[%emt 0:00:19]} 32. Qg5 {[%emt 0:00:02]} e5 {[%emt 0:01:19]} 33. Re2 {[%emt 0:00:22] [#]} (33. Nd3 $17 {might work better.}) 33... exd4 $1 $19 {[%emt 0:00:23]} 34. Rxe8 {[%emt 0:00:01]} (34. Rae1 {was forced.} Qd8 35. Qc1 Rxe2 36. Rxe2 Rxc5 37. bxc5) 34... Rxe8 {[%emt 0:00:02] Chess con chili.} 35. cxd4 {[%emt 0:00:01]} Re2 {[%emt 0:00:17] White must now prevent ...Ne3.} 36. Nd3 {[%emt 0:00:30]} Qe7 {[%emt 0:01:42]} 37. Qxe7 {[%emt 0:00:38]} Rxe7 {[%emt 0:00:01]} 38. Ne5 {[%emt 0:01:14]} Nxe5 {[%emt 0:00:24]} 39. dxe5 {[%emt 0:00:01]} Rxe5 {[%emt 0:00:01][%mdl 4096] Endgame KR-KR} 40. Kf2 {[%emt 0:00:22]} (40. Rd1 {was worth a try.}) 40... d4 {[%emt 0:00:14] Strongly threatening ...Re3.} 41. Rd1 {[%emt 0:00:03]} Re3 {[%emt 0:00:01][%cal Be5e3,Be3a3,Ba3a2,Ba2b2,Bb2b4][%mdl 32]} 42. Rxd4 {[%emt 0:00:03]} Rxa3 {[%emt 0:00:01]} 43. Rd5 {[%emt 0:00:01]} Ra2+ {[%emt 0:00:12]} 44. Kg3 {[%emt 0:00:14]} Rb2 {[%emt 0:00:05]} 45. Rxb5 {[%emt 0:00:02] [#]} Kf6 $1 {[%emt 0:00:24] Black is more active.} 46. Rb6+ $2 {[%emt 0:00:02][%mdl 8192]} (46. f4 $17) 46... Ke5 {[%emt 0:00:09]} 47. b5 $2 {[%emt 0:00:15]} (47. Kh4) 47... Kd5 {[%emt 0:00:11]} 48. Ra6 {[%emt 0:00:08]} Rb4 {[%emt 0:00:18] And now ...Kc4 would win.} 49. Ra7 {[%emt 0:00:24]} (49. f4 $142 Kc5 50. b6) 49... h4+ {[%emt 0:00:05]} 50. Kh2 {[%emt 0:00:07]} Kc5 {[%emt 0:00:01]} 51. Rxf7 {[%emt 0:00:09]} Rxb5 {[%emt 0:00:06]} 52. Ra7 {[%emt 0:00:19] Inhibits Ra5.} Kb4 {[%emt 0:00:03] Hoping for ...a3.} 53. g3 {[%emt 0:00:02]} hxg3+ 54. Kxg3 {[%emt 0:00:01]} a3 {[%emt 0:00:17][%cal Ba4a3,Ba3a2][%mdl 32]} 55. Ra6 {[%emt 0:00:31]} Ra5 {[%emt 0:00:08]} 56. Rb6+ {[%emt 0:00:09]} Kc5 {[%emt 0:00:18]} 57. Rb1 {[%emt 0:00:05]} a2 {[%emt 0:00:01]} 58. Rc1+ {[%emt 0:00:04]} Kd4 {[%emt 0:00:17]} 59. Ra1 {[%emt 0:00:07]} Ke5 {Quite a comeback for Black.  Weighted Error Value: White=0.57/Black=0.13 (very precise)} (59... Kc3 $142 60. Rc1+ Kb2) 0-1